[Event "*** Titled Tuesday 3|2 Blitz"]
[Site "Chess.com"]
[Date "2015.11.03"]
[Round "9"]
[White "stefanodinn"]
[Black "SenseiJulio"]
[Result "0-1"]
[WhiteElo "2154"]
[BlackElo "2564"]
[TimeControl "180+2"]
[EndTime "12:56:15 PST"]
[Termination "SenseiJulio won on time"]

1. e4 {[%clk 0:03:00.6]} 1... e6 {[%clk 0:03:00.9]} 2. d4 {[%clk 0:03:00.2]}
2... d5 {[%clk 0:03:02.2]} 3. Nd2 {[%clk 0:03:00.4]} 3... Be7 {[%clk 0:03:03.2]}
4. c3 {[%clk 0:02:59.9]} 4... c5 {[%clk 0:03:02.7]} 5. exd5 {[%clk 0:02:53.4]}
5... exd5 {[%clk 0:02:59.3]} 6. dxc5 {[%clk 0:02:51.1]} 6... Bxc5 {[%clk
0:02:59.3]} 7. Ngf3 {[%clk 0:02:51.2]} 7... Nc6 {[%clk 0:02:58.8]} 8. Nb3 {[%clk
0:02:34.9]} 8... Bb6 {[%clk 0:02:58.4]} 9. Bd3 {[%clk 0:02:25.1]} 9... Nf6
{[%clk 0:02:57.4]} 10. O-O {[%clk 0:02:25.9]} 10... O-O {[%clk 0:02:57.7]} 11.
h3 {[%clk 0:02:17.6]} 11... Qd6 {[%clk 0:02:57]} 12. Re1 {[%clk 0:02:16.7]}
12... Bxh3 {[%clk 0:02:56.5]} 13. Be3 {[%clk 0:02:03.5]} 13... Bg4 {[%clk
0:02:53.4]} 14. Bxb6 {[%clk 0:02:02.6]} 14... axb6 {[%clk 0:02:53.6]} 15. Be2
{[%clk 0:02:01.3]} 15... Rfe8 {[%clk 0:02:41]} 16. Nfd4 {[%clk 0:01:58.7]} 16...
Ne5 {[%clk 0:02:36.5]} 17. f3 {[%clk 0:01:13.6]} 17... Bd7 {[%clk 0:02:34.2]}
18. Bf1 {[%clk 0:01:09.4]} 18... Nc4 {[%clk 0:02:27.1]} 19. Bxc4 {[%clk
0:00:49.9]} 19... dxc4 {[%clk 0:02:25.4]} 20. Nd2 {[%clk 0:00:51.3]} 20... b5
{[%clk 0:02:21.3]} 21. a3 {[%clk 0:00:51.7]} 21... Qf4 {[%clk 0:02:10.9]} 22.
Nf1 {[%clk 0:00:45.6]} 22... Bc6 {[%clk 0:01:58.5]} 23. Qd2 {[%clk 0:00:42]}
23... Nd5 {[%clk 0:01:53.5]} 24. Qf2 {[%clk 0:00:13.7]} 24... Qg5 {[%clk
0:01:42.3]} 25. Rxe8+ {[%clk 0:00:10.9]} 25... Rxe8 {[%clk 0:01:41.5]} 26. Re1
{[%clk 0:00:12.3]} 26... Rd8 {[%clk 0:01:39.6]} 27. Qg3 {[%clk 0:00:06.6]} 27...
Qxg3 {[%clk 0:01:38.1]} 28. Nxg3 {[%clk 0:00:07]} 28... Kf8 {[%clk 0:01:32.1]}
29. Ngf5 {[%clk 0:00:06.1]} 29... Nf4 {[%clk 0:01:28.7]} 0-1

[Event "*** Titled Tuesday 3|2 Blitz"]
[Site "Chess.com"]
[Date "2015.11.03"]
[Round "9"]
[White "Boryboy"]
[Black "jcibarra"]
[Result "0-1"]
[WhiteElo "2468"]
[BlackElo "2537"]
[TimeControl "180+2"]
[EndTime "12:56:23 PST"]
[Termination "jcibarra won on time"]

1. d4 {[%clk 0:03:01.9]} 1... Nf6 {[%clk 0:02:56.9]} 2. Nf3 {[%clk 0:02:58.5]}
2... g6 {[%clk 0:02:57.7]} 3. g3 {[%clk 0:02:59.7]} 3... d6 {[%clk 0:02:58.8]}
4. Bg2 {[%clk 0:03:00.8]} 4... Bg7 {[%clk 0:03:00.4]} 5. O-O {[%clk 0:03:02.6]}
5... O-O {[%clk 0:03:02]} 6. Re1 {[%clk 0:03:03.3]} 6... Bf5 {[%clk 0:03:01.7]}
7. Nc3 {[%clk 0:03:02]} 7... Ne4 {[%clk 0:03:02.1]} 8. Nh4 {[%clk 0:03:01.5]}
8... Nxc3 {[%clk 0:03:02.8]} 9. bxc3 {[%clk 0:03:02.5]} 9... Bc8 {[%clk
0:03:04.4]} 10. Rb1 {[%clk 0:03:01.1]} 10... Nc6 {[%clk 0:03:04.8]} 11. e4
{[%clk 0:02:56.8]} 11... Na5 {[%clk 0:03:00.2]} 12. Be3 {[%clk 0:02:53]} 12...
Nc4 {[%clk 0:02:57.1]} 13. Qd3 {[%clk 0:02:53.6]} 13... Nxe3 {[%clk 0:02:57.4]}
14. Rxe3 {[%clk 0:02:53.2]} 14... c5 {[%clk 0:02:56.3]} 15. Nf3 {[%clk
0:02:44.6]} 15... Qa5 {[%clk 0:02:54.1]} 16. Qc4 {[%clk 0:02:10.2]} 16... b6
{[%clk 0:02:50.8]} 17. d5 {[%clk 0:02:07.1]} 17... Ba6 {[%clk 0:02:45.7]} 18.
Qb3 {[%clk 0:02:07.5]} 18... b5 {[%clk 0:02:34.1]} 19. e5 {[%clk 0:01:57.6]}
19... Rab8 {[%clk 0:02:28.3]} 20. Bf1 {[%clk 0:01:54.1]} 20... Bc8 {[%clk
0:02:23.9]} 21. e6 {[%clk 0:01:51.1]} 21... fxe6 {[%clk 0:02:22.1]} 22. Ng5
{[%clk 0:01:47.6]} 22... e5 {[%clk 0:02:11.2]} 23. Ne6 {[%clk 0:01:40.8]} 23...
Bxe6 {[%clk 0:02:12.1]} 24. dxe6 {[%clk 0:01:42.7]} 24... c4 {[%clk 0:02:05.1]}
25. Bxc4 {[%clk 0:01:43.6]} 25... Bh6 {[%clk 0:01:54.8]} 26. Bd3 {[%clk
0:00:59]} 26... Bxe3 {[%clk 0:01:52.9]} 27. fxe3 {[%clk 0:01:00.9]} 27... Qb6
{[%clk 0:01:49.4]} 28. Qd5 {[%clk 0:00:52.7]} 28... Qxe3+ {[%clk 0:01:47.6]} 29.
Kh1 {[%clk 0:00:54.2]} 29... Rf2 {[%clk 0:01:44.2]} 30. Bf1 {[%clk 0:00:22]}
30... Rxc2 {[%clk 0:01:34.8]} 31. Bg2 {[%clk 0:00:19.6]} 31... Rc1+ {[%clk
0:01:34.2]} 0-1

[Event "*** Titled Tuesday 3|2 Blitz"]
[Site "Chess.com"]
[Date "2015.11.03"]
[Round "9"]
[White "E-Shaposhnikov"]
[Black "Iball95"]
[Result "1-0"]
[WhiteElo "2541"]
[BlackElo "2364"]
[TimeControl "180+2"]
[EndTime "12:57:06 PST"]
[Termination "E-Shaposhnikov won on time"]

1. Nf3 {[%clk 0:03:01.9]} 1... c5 {[%clk 0:03:00.9]} 2. c4 {[%clk 0:03:02.3]}
2... Nf6 {[%clk 0:03:00.6]} 3. Nc3 {[%clk 0:03:02.4]} 3... Nc6 {[%clk 0:03:02]}
4. g3 {[%clk 0:03:03.4]} 4... d5 {[%clk 0:03:02]} 5. d4 {[%clk 0:03:04.1]} 5...
cxd4 {[%clk 0:03:00.1]} 6. Nxd4 {[%clk 0:03:06]} 6... e6 {[%clk 0:03:00.8]} 7.
Bg2 {[%clk 0:03:05.2]} 7... Bc5 {[%clk 0:02:52.1]} 8. Nb3 {[%clk 0:02:50.7]}
8... Bb4 {[%clk 0:02:50]} 9. cxd5 {[%clk 0:02:50.1]} 9... Nxd5 {[%clk
0:02:47.6]} 10. Bd2 {[%clk 0:02:34.2]} 10... Nxc3 {[%clk 0:02:47.5]} 11. Bxc3
{[%clk 0:02:32.3]} 11... Bxc3+ {[%clk 0:02:48.3]} 12. bxc3 {[%clk 0:02:32.9]}
12... Qc7 {[%clk 0:02:36.8]} 13. O-O {[%clk 0:02:32.1]} 13... O-O {[%clk
0:02:36.8]} 14. c4 {[%clk 0:02:27.8]} 14... b6 {[%clk 0:02:36.1]} 15. c5 {[%clk
0:02:28.9]} 15... bxc5 {[%clk 0:02:02]} 16. Rc1 {[%clk 0:02:15.4]} 16... Rd8
{[%clk 0:01:38.4]} 17. Qc2 {[%clk 0:02:08.8]} 17... Nb4 {[%clk 0:01:36]} 18. Qe4
{[%clk 0:01:32]} 18... Rb8 {[%clk 0:01:13.5]} 19. Rxc5 {[%clk 0:01:28.8]} 19...
Qb6 {[%clk 0:01:12.8]} 20. Qh4 {[%clk 0:01:10.9]} 20... Bb7 {[%clk 0:01:09.4]}
21. Bxb7 {[%clk 0:01:08.5]} 21... Qxb7 {[%clk 0:01:01.1]} 22. Rh5 {[%clk
0:01:07.1]} 22... h6 {[%clk 0:00:59.1]} 23. Nc5 {[%clk 0:00:59.7]} 23... Qc6
{[%clk 0:00:47.7]} 24. Ne4 {[%clk 0:00:58.8]} 24... Rd5 {[%clk 0:00:33.2]} 25.
Nf6+ {[%clk 0:00:52.1]} 25... gxf6 {[%clk 0:00:34.7]} 26. Rxh6 {[%clk
0:00:53.1]} 26... Kf8 {[%clk 0:00:12.4]} 27. Qxf6 {[%clk 0:00:45.6]} 27... Ke8
{[%clk 0:00:13.4]} 28. Rh8+ {[%clk 0:00:45.4]} 28... Kd7 {[%clk 0:00:15]} 29.
Rxb8 {[%clk 0:00:43.6]} 29... Qd6 {[%clk 0:00:14.4]} 30. Rd8+ {[%clk 0:00:42.6]}
1-0

[Event "*** Titled Tuesday 3|2 Blitz"]
[Site "Chess.com"]
[Date "2015.11.03"]
[Round "9"]
[White "JammyDodger91"]
[Black "amaidel"]
[Result "0-1"]
[WhiteElo "2225"]
[BlackElo "2336"]
[TimeControl "180+2"]
[EndTime "12:57:10 PST"]
[Termination "amaidel won by resignation"]

1. e4 {[%clk 0:03:01.9]} 1... c5 {[%clk 0:02:58.6]} 2. d4 {[%clk 0:03:02.6]}
2... cxd4 {[%clk 0:02:59.1]} 3. c3 {[%clk 0:03:04]} 3... dxc3 {[%clk 0:02:58.3]}
4. Nxc3 {[%clk 0:03:05.9]} 4... Nc6 {[%clk 0:02:55.8]} 5. Nf3 {[%clk 0:03:07.1]}
5... g6 {[%clk 0:02:56.1]} 6. Bc4 {[%clk 0:03:07.8]} 6... Bg7 {[%clk 0:02:50.8]}
7. e5 {[%clk 0:03:09]} 7... Nh6 {[%clk 0:02:33.8]} 8. O-O {[%clk 0:02:58.6]}
8... O-O {[%clk 0:02:34.4]} 9. Bf4 {[%clk 0:02:56.8]} 9... Nf5 {[%clk
0:02:17.6]} 10. g4 {[%clk 0:02:47.4]} 10... Nh6 {[%clk 0:02:17.9]} 11. h3 {[%clk
0:02:48.8]} 11... Kh8 {[%clk 0:02:18.3]} 12. Qd2 {[%clk 0:02:48.7]} 12... Ng8
{[%clk 0:02:18]} 13. g5 {[%clk 0:02:17.4]} 13... d6 {[%clk 0:02:11]} 14. exd6
{[%clk 0:02:11.6]} 14... e5 {[%clk 0:02:09.3]} 15. Bg3 {[%clk 0:02:07]} 15...
Bxh3 {[%clk 0:02:09.6]} 16. Rfe1 {[%clk 0:02:07.5]} 16... Qa5 {[%clk 0:01:52.3]}
17. Re4 {[%clk 0:01:36.9]} 17... Nd4 {[%clk 0:01:47.9]} 18. Nxd4 {[%clk
0:01:14.7]} 18... exd4 {[%clk 0:01:48.4]} 19. Rxd4 {[%clk 0:01:16.4]} 19... Bxd4
{[%clk 0:01:27.5]} 20. Qxd4+ {[%clk 0:01:17.3]} 20... f6 {[%clk 0:01:27.8]} 21.
Ne4 {[%clk 0:00:52.2]} 21... Qf5 {[%clk 0:01:16.9]} 22. gxf6 {[%clk 0:00:49.8]}
22... Nxf6 {[%clk 0:01:12.7]} 23. Nxf6 {[%clk 0:00:50.9]} 23... Rxf6 {[%clk
0:01:13]} 24. Be5 {[%clk 0:00:51]} 24... Qg5+ {[%clk 0:01:13.1]} 25. Bg3 {[%clk
0:00:49.7]} 25... Kg7 {[%clk 0:01:06.3]} 26. Re1 {[%clk 0:00:46.8]} 26... Kh6
{[%clk 0:01:05.2]} 27. Re4 {[%clk 0:00:40.9]} 27... Bd7 {[%clk 0:00:38.7]} 28.
Rh4+ {[%clk 0:00:38]} 28... Kg7 {[%clk 0:00:39.7]} 29. Kh2 {[%clk 0:00:27]}
29... Re8 {[%clk 0:00:40.3]} 30. Rf4 {[%clk 0:00:25.2]} 30... Re1 {[%clk
0:00:34.5]} 31. Rxf6 {[%clk 0:00:21.9]} 31... Qxf6 {[%clk 0:00:34.8]} 32. Be5
{[%clk 0:00:22.7]} 32... Rxe5 {[%clk 0:00:34.8]} 0-1

[Event "*** Titled Tuesday 3|2 Blitz"]
[Site "Chess.com"]
[Date "2015.11.03"]
[Round "9"]
[White "eltenedor"]
[Black "bugsbunny444"]
[Result "0-1"]
[WhiteElo "1969"]
[BlackElo "2334"]
[TimeControl "180+2"]
[EndTime "12:57:46 PST"]
[Termination "bugsbunny444 won on time"]

1. c4 {[%clk 0:03:01.9]} 1... b6 {[%clk 0:03:00.7]} 2. b3 {[%clk 0:02:53]} 2...
Bb7 {[%clk 0:03:01.1]} 3. Bb2 {[%clk 0:02:52.9]} 3... e6 {[%clk 0:02:59.2]} 4.
f4 {[%clk 0:02:45.7]} 4... Bxg2 {[%clk 0:02:51.1]} 5. Bxg2 {[%clk 0:02:42.8]}
5... Qh4+ {[%clk 0:02:49.6]} 6. Kf1 {[%clk 0:02:43.1]} 6... Qxf4+ {[%clk
0:02:47.7]} 7. Nf3 {[%clk 0:02:42.8]} 7... Nc6 {[%clk 0:02:44]} 8. e3 {[%clk
0:02:38.8]} 8... Qf5 {[%clk 0:02:40.6]} 9. Ke2 {[%clk 0:02:13.3]} 9... Nf6
{[%clk 0:02:34.8]} 10. Bxf6 {[%clk 0:02:01.7]} 10... Qxf6 {[%clk 0:02:35.6]} 11.
Nc3 {[%clk 0:02:00.4]} 11... g5 {[%clk 0:02:26.2]} 12. Ne4 {[%clk 0:01:56.8]}
12... Qg6 {[%clk 0:02:18.4]} 13. Nf2 {[%clk 0:01:35.4]} 13... Bg7 {[%clk
0:02:12.2]} 14. d4 {[%clk 0:01:31.1]} 14... g4 {[%clk 0:02:11.6]} 15. Ne1 {[%clk
0:01:20.9]} 15... O-O-O {[%clk 0:02:08.9]} 16. Qd3 {[%clk 0:01:07.1]} 16... f5
{[%clk 0:02:06.6]} 17. Nc2 {[%clk 0:00:57.7]} 17... Rdf8 {[%clk 0:02:00.7]} 18.
Bxc6 {[%clk 0:00:49]} 18... dxc6 {[%clk 0:02:01]} 19. Nb4 {[%clk 0:00:49.4]}
19... Kb7 {[%clk 0:01:51.4]} 20. c5 {[%clk 0:00:47.2]} 20... b5 {[%clk
0:01:34.8]} 21. a4 {[%clk 0:00:40.3]} 21... f4 {[%clk 0:01:18.5]} 22. Qxg6
{[%clk 0:00:32.4]} 22... hxg6 {[%clk 0:01:08]} 23. axb5 {[%clk 0:00:24.1]} 23...
cxb5 {[%clk 0:00:55.2]} 24. Nxg4 {[%clk 0:00:20.3]} 24... fxe3 {[%clk
0:00:48.3]} 25. c6+ {[%clk 0:00:17.4]} 25... Kb8 {[%clk 0:00:48.5]} 26. Ra5
{[%clk 0:00:17.2]} 26... Bxd4 {[%clk 0:00:44.1]} 27. Rxb5+ {[%clk 0:00:16.6]}
27... Bb6 {[%clk 0:00:36.3]} 28. Nxe3 {[%clk 0:00:13.8]} 28... Rh3 {[%clk
0:00:27.3]} 29. Re5 {[%clk 0:00:13.1]} 29... Rfh8 {[%clk 0:00:18]} 30. Nf1
{[%clk 0:00:08.8]} 30... Rxb3 {[%clk 0:00:17]} 31. Nd3 {[%clk 0:00:04.3]} 31...
Rd8 {[%clk 0:00:14.8]} 32. Nf4 {[%clk 0:00:02.2]} 32... Rc3 {[%clk 0:00:09.3]}
0-1

[Event "*** Titled Tuesday 3|2 Blitz"]
[Site "Chess.com"]
[Date "2015.11.03"]
[Round "9"]
[White "AleksandrNevski"]
[Black "Fandorine"]
[Result "0-1"]
[WhiteElo "2342"]
[BlackElo "2533"]
[TimeControl "180+2"]
[EndTime "12:57:56 PST"]
[Termination "Fandorine won by checkmate"]

1. Nf3 {[%clk 0:03:01.9]} 1... g6 {[%clk 0:01:57.3]} 2. g3 {[%clk 0:02:57.4]}
2... Bg7 {[%clk 0:01:57.2]} 3. Bg2 {[%clk 0:02:59]} 3... d5 {[%clk 0:01:56.4]}
4. O-O {[%clk 0:02:59.7]} 4... Nf6 {[%clk 0:01:55.1]} 5. d3 {[%clk 0:03:00.2]}
5... O-O {[%clk 0:01:55.3]} 6. c3 {[%clk 0:03:00.5]} 6... c5 {[%clk 0:01:56.3]}
7. Nbd2 {[%clk 0:03:00.2]} 7... Nc6 {[%clk 0:01:57.7]} 8. e4 {[%clk 0:02:57.9]}
8... e6 {[%clk 0:01:58.8]} 9. Qe2 {[%clk 0:02:57.8]} 9... a5 {[%clk 0:01:51.3]}
10. a4 {[%clk 0:02:58]} 10... b6 {[%clk 0:01:49.7]} 11. Re1 {[%clk 0:02:51.4]}
11... Ba6 {[%clk 0:01:45.6]} 12. exd5 {[%clk 0:02:51.3]} 12... exd5 {[%clk
0:01:44.5]} 13. Nb1 {[%clk 0:02:46.6]} 13... Re8 {[%clk 0:01:28.7]} 14. Qd1
{[%clk 0:02:47.5]} 14... Rxe1+ {[%clk 0:01:22.8]} 15. Nxe1 {[%clk 0:02:49]}
15... Qd7 {[%clk 0:01:23.5]} 16. Na3 {[%clk 0:02:49.7]} 16... Re8 {[%clk
0:01:24.7]} 17. Bg5 {[%clk 0:02:31.7]} 17... h6 {[%clk 0:01:22.5]} 18. Bxf6
{[%clk 0:02:32.2]} 18... Bxf6 {[%clk 0:01:23.2]} 19. Qb3 {[%clk 0:02:33]} 19...
Qc7 {[%clk 0:01:08.5]} 20. Bxd5 {[%clk 0:02:20.1]} 20... Ne5 {[%clk 0:01:07.8]}
21. Nb5 {[%clk 0:02:18.4]} 21... Bxb5 {[%clk 0:01:04]} 22. axb5 {[%clk
0:02:18.6]} 22... Kg7 {[%clk 0:01:03]} 23. Qc2 {[%clk 0:02:01.7]} 23... Qd7
{[%clk 0:00:58.3]} 24. c4 {[%clk 0:02:00.4]} 24... Qg4 {[%clk 0:00:55.5]} 25.
Kg2 {[%clk 0:01:55.8]} 25... h5 {[%clk 0:00:55]} 26. h3 {[%clk 0:01:45.3]} 26...
Qd4 {[%clk 0:00:55.1]} 27. Rb1 {[%clk 0:01:32.4]} 27... h4 {[%clk 0:00:49.1]}
28. Qe2 {[%clk 0:01:28.6]} 28... hxg3 {[%clk 0:00:39]} 29. fxg3 {[%clk
0:01:29.2]} 29... Re7 {[%clk 0:00:40.2]} 30. Qe4 {[%clk 0:01:27.6]} 30... Nc6
{[%clk 0:00:29.3]} 31. Qf3 {[%clk 0:01:11.6]} 31... Nb4 {[%clk 0:00:23.4]} 32.
Qf2 {[%clk 0:01:04.3]} 32... Re3 {[%clk 0:00:07.7]} 33. Bf3 {[%clk 0:00:46.1]}
33... Nxd3 {[%clk 0:00:07.6]} 34. Nxd3 {[%clk 0:00:42.3]} 34... Rxd3 {[%clk
0:00:09]} 35. Re1 {[%clk 0:00:31.9]} 35... Qxf2+ {[%clk 0:00:08.6]} 36. Kxf2
{[%clk 0:00:32.8]} 36... Rd2+ {[%clk 0:00:08.4]} 37. Ke3 {[%clk 0:00:30.3]}
37... Bg5+ {[%clk 0:00:04.8]} 38. Ke4 {[%clk 0:00:30.7]} 38... Rd4+ {[%clk
0:00:05.6]} 39. Ke5 {[%clk 0:00:29.1]} 39... Bf6# {[%clk 0:00:07]} 0-1

[Event "*** Titled Tuesday 3|2 Blitz"]
[Site "Chess.com"]
[Date "2015.11.03"]
[Round "9"]
[White "Mugzyyy"]
[Black "SerGo055"]
[Result "1-0"]
[WhiteElo "2510"]
[BlackElo "2405"]
[TimeControl "180+2"]
[EndTime "12:58:03 PST"]
[Termination "Mugzyyy won on time"]

1. d4 {[%clk 0:03:01.9]} 1... d5 {[%clk 0:02:53.8]} 2. c4 {[%clk 0:03:02.6]}
2... c6 {[%clk 0:02:55]} 3. Nf3 {[%clk 0:03:00.4]} 3... Nf6 {[%clk 0:02:56.1]}
4. Bg5 {[%clk 0:03:01.6]} 4... Ne4 {[%clk 0:02:55.7]} 5. Bf4 {[%clk 0:03:02.5]}
5... e6 {[%clk 0:02:55]} 6. Nbd2 {[%clk 0:03:03.6]} 6... f5 {[%clk 0:02:56.1]}
7. e3 {[%clk 0:03:04.6]} 7... Bd6 {[%clk 0:02:56.3]} 8. Bxd6 {[%clk 0:03:03.8]}
8... Qxd6 {[%clk 0:02:57.1]} 9. Bd3 {[%clk 0:03:05.5]} 9... Nd7 {[%clk
0:02:57.1]} 10. h3 {[%clk 0:03:05.2]} 10... O-O {[%clk 0:02:57.6]} 11. g4 {[%clk
0:03:06.3]} 11... Ndf6 {[%clk 0:02:46.3]} 12. Ne5 {[%clk 0:03:01.2]} 12... Nxd2
{[%clk 0:02:31.9]} 13. Qxd2 {[%clk 0:03:02.1]} 13... Ne4 {[%clk 0:02:21.3]} 14.
Qc2 {[%clk 0:03:03]} 14... c5 {[%clk 0:02:14.5]} 15. O-O-O {[%clk 0:03:01.4]}
15... Bd7 {[%clk 0:02:02.9]} 16. Kb1 {[%clk 0:02:50.8]} 16... Rac8 {[%clk
0:02:03.4]} 17. f3 {[%clk 0:02:50.1]} 17... cxd4 {[%clk 0:02:02.9]} 18. exd4
{[%clk 0:02:48.4]} 18... dxc4 {[%clk 0:01:05.8]} 19. Nxc4 {[%clk 0:02:43.1]}
19... Qd5 {[%clk 0:01:07]} 20. fxe4 {[%clk 0:02:33.2]} 20... fxe4 {[%clk
0:01:07.7]} 21. Bxe4 {[%clk 0:02:34.9]} 21... Qxc4 {[%clk 0:01:08.3]} 22. Bxh7+
{[%clk 0:02:35.3]} 22... Kh8 {[%clk 0:01:08.2]} 23. Qxc4 {[%clk 0:02:25]} 23...
Rxc4 {[%clk 0:01:08.6]} 24. Be4 {[%clk 0:02:26.6]} 24... Rf4 {[%clk 0:00:57.9]}
25. Rhe1 {[%clk 0:01:50.8]} 25... Rf2 {[%clk 0:00:38.6]} 26. Rf1 {[%clk
0:01:43.2]} 26... Rxf1 {[%clk 0:00:20.9]} 27. Rxf1 {[%clk 0:01:44.4]} 27... Kg8
{[%clk 0:00:17.8]} 28. Rd1 {[%clk 0:01:45.9]} 28... b6 {[%clk 0:00:12.5]} 29. b3
{[%clk 0:01:41.4]} 29... Rc3 {[%clk 0:00:13.3]} 30. Rd3 {[%clk 0:01:41.2]} 30...
Rc8 {[%clk 0:00:10]} 31. d5 {[%clk 0:01:41.9]} 31... Rf8 {[%clk 0:00:05.7]} 32.
dxe6 {[%clk 0:01:35.1]} 32... Bxe6 {[%clk 0:00:06.7]} 33. Rd6 {[%clk 0:01:36.8]}
33... Rf1+ {[%clk 0:00:05.1]} 34. Kb2 {[%clk 0:01:37.7]} 34... Kf7 {[%clk
0:00:06.6]} 35. Rc6 {[%clk 0:01:38.7]} 35... Re1 {[%clk 0:00:05.7]} 36. Bd3
{[%clk 0:01:37.6]} 36... Re3 {[%clk 0:00:06.1]} 37. Kc2 {[%clk 0:01:38.8]} 37...
Rxh3 {[%clk 0:00:06.2]} 38. g5 {[%clk 0:01:40.4]} 38... Rh2+ {[%clk 0:00:04.5]}
39. Kb1 {[%clk 0:01:38.4]} 39... Rh3 {[%clk 0:00:05.1]} 40. Rc7+ {[%clk
0:01:39.2]} 40... Kf8 {[%clk 0:00:05.3]} 41. Bc2 {[%clk 0:01:35.3]} 41... Rh1+
{[%clk 0:00:04.5]} 42. Kb2 {[%clk 0:01:36.4]} 42... Rh2 {[%clk 0:00:06.1]} 43.
Kc3 {[%clk 0:01:37.2]} 43... b5 {[%clk 0:00:04.9]} 44. Kd4 {[%clk 0:01:31]}
44... Rd2+ {[%clk 0:00:03.9]} 45. Ke5 {[%clk 0:01:32.3]} 45... Re2+ {[%clk
0:00:05.2]} 46. Kd6 {[%clk 0:01:33.3]} 46... b4 {[%clk 0:00:03.7]} 47. g6 {[%clk
0:01:25.8]} 47... Bg4 {[%clk 0:00:04.3]} 48. Rc4 {[%clk 0:01:16.2]} 48... Rd2+
{[%clk 0:00:02.1]} 49. Kc7 {[%clk 0:01:16.8]} 1-0

[Event "*** Titled Tuesday 3|2 Blitz"]
[Site "Chess.com"]
[Date "2015.11.03"]
[Round "9"]
[White "StoreySniper"]
[Black "stepanosinovsky"]
[Result "0-1"]
[WhiteElo "2132"]
[BlackElo "2213"]
[TimeControl "180+2"]
[EndTime "12:58:06 PST"]
[Termination "stepanosinovsky won by checkmate"]

1. g3 {[%clk 0:03:01.9]} 1... h5 {[%clk 0:02:55.3]} 2. Bg2 {[%clk 0:03:02.1]}
2... h4 {[%clk 0:02:56]} 3. c4 {[%clk 0:03:03.4]} 3... c5 {[%clk 0:02:55.9]} 4.
Nc3 {[%clk 0:03:04]} 4... Nc6 {[%clk 0:02:56.6]} 5. d3 {[%clk 0:03:01]} 5... d6
{[%clk 0:02:57.4]} 6. Bg5 {[%clk 0:02:55.7]} 6... h3 {[%clk 0:02:55.8]} 7. Bxc6+
{[%clk 0:02:55]} 7... bxc6 {[%clk 0:02:56.4]} 8. Nf3 {[%clk 0:02:56.9]} 8... Rb8
{[%clk 0:02:55.4]} 9. Qa4 {[%clk 0:02:52.4]} 9... Rxb2 {[%clk 0:02:48.9]} 10.
O-O {[%clk 0:02:48.8]} 10... Qc7 {[%clk 0:02:39.9]} 11. Rab1 {[%clk 0:02:37.6]}
11... Rb6 {[%clk 0:02:39]} 12. Nd5 {[%clk 0:02:37]} 12... Qb7 {[%clk 0:02:33.2]}
13. Nxb6 {[%clk 0:02:34.6]} 13... axb6 {[%clk 0:02:34]} 14. Qb3 {[%clk 0:02:31]}
14... f6 {[%clk 0:02:10.1]} 15. Be3 {[%clk 0:02:25.2]} 15... Kf7 {[%clk
0:01:58.3]} 16. Qxb6 {[%clk 0:02:24.6]} 16... Qd7 {[%clk 0:01:59.1]} 17. d4
{[%clk 0:02:10.1]} 17... cxd4 {[%clk 0:01:57.3]} 18. Nxd4 {[%clk 0:02:03.4]}
18... c5 {[%clk 0:01:57.1]} 19. Nc6 {[%clk 0:01:58.1]} 19... Qf5 {[%clk
0:01:35]} 20. Rb3 {[%clk 0:01:41.4]} 20... Nh6 {[%clk 0:01:32.7]} 21. Bxh6
{[%clk 0:01:38.5]} 21... Rxh6 {[%clk 0:01:33.1]} 22. Re3 {[%clk 0:01:20.2]}
22... Rg6 {[%clk 0:01:06.2]} 23. Qc7 {[%clk 0:01:14.1]} 23... Bd7 {[%clk
0:00:54.4]} 24. Nb8 {[%clk 0:00:24.2]} 24... Be6 {[%clk 0:00:52.1]} 25. Nc6
{[%clk 0:00:13.8]} 25... Bd7 {[%clk 0:00:52.7]} 26. Nd8+ {[%clk 0:00:14.2]}
26... Kg8 {[%clk 0:00:47.4]} 27. Qb7 {[%clk 0:00:14.6]} 27... Rg5 {[%clk
0:00:38.2]} 28. Nc6 {[%clk 0:00:08.3]} 28... Kf7 {[%clk 0:00:32.5]} 29. Nd8+
{[%clk 0:00:07.5]} 29... Ke8 {[%clk 0:00:30.9]} 30. Nc6 {[%clk 0:00:08.6]} 30...
Rg4 {[%clk 0:00:29.4]} 31. Qb8+ {[%clk 0:00:05.7]} 31... Kf7 {[%clk 0:00:29.8]}
32. Nd8+ {[%clk 0:00:05.9]} 32... Kg8 {[%clk 0:00:30.5]} 33. Re1 {[%clk
0:00:02.2]} 33... Rxc4 {[%clk 0:00:30]} 34. Qc7 {[%clk 0:00:02.7]} 34... Re4
{[%clk 0:00:28.8]} 35. Rxe4 {[%clk 0:00:03.2]} 35... Qxe4 {[%clk 0:00:29.4]} 36.
f3 {[%clk 0:00:05.1]} 36... Qe3+ {[%clk 0:00:25.1]} 37. Kf1 {[%clk 0:00:06.4]}
37... Bb5 {[%clk 0:00:24.9]} 38. Qb8 {[%clk 0:00:06.4]} 38... Qxf3+ {[%clk
0:00:25.3]} 39. Kg1 {[%clk 0:00:03.8]} 39... Qg2# {[%clk 0:00:25.8]} 0-1